[Event "Late-Titled-Tuesday-Blitz-January-23-2024"]
[Site "Chess.com"]
[Date "2024.01.23"]
[Round "5"]
[White "DrCeltic"]
[Black "ural58"]
[Result "1-0"]
[WhiteElo "2606"]
[BlackElo "2451"]
[TimeControl "180+1"]
[EndTime "14:55:12 PST"]
[Termination "DrCeltic won by resignation"]

1. e4 {[%clk 0:02:59.6]} 1... d5 {[%clk 0:02:55.6]} 2. exd5 {[%clk 0:02:59.6]}
2... Qxd5 {[%clk 0:02:54.8]} 3. Nc3 {[%clk 0:02:59.8]} 3... Qa5 {[%clk
0:02:54.2]} 4. Nf3 {[%clk 0:02:59.9]} 4... Nc6 {[%clk 0:02:51.9]} 5. Bb5 {[%clk
0:02:56.9]} 5... Bd7 {[%clk 0:02:50]} 6. d4 {[%clk 0:02:56]} 6... a6 {[%clk
0:02:48.4]} 7. Ba4 {[%clk 0:02:50.2]} 7... O-O-O {[%clk 0:02:41.9]} 8. d5 {[%clk
0:02:41.5]} 8... Be6 {[%clk 0:02:02.9]} 9. Bb3 {[%clk 0:02:23.7]} 9... Nf6
{[%clk 0:02:01.9]} 10. Bd2 {[%clk 0:02:17.9]} 10... Nxd5 {[%clk 0:01:51.7]} 11.
Nxd5 {[%clk 0:02:17.4]} 11... Rxd5 {[%clk 0:01:51.8]} 12. Bxd5 {[%clk
0:01:20.5]} 12... Qxd5 {[%clk 0:01:50.5]} 13. O-O {[%clk 0:01:20.9]} 13... Bg4
{[%clk 0:01:49.4]} 14. Bc3 {[%clk 0:01:18.6]} 14... Bxf3 {[%clk 0:01:49]} 15.
Qxf3 {[%clk 0:01:19]} 15... Qxf3 {[%clk 0:01:49.2]} 16. gxf3 {[%clk 0:01:19.9]}
16... e6 {[%clk 0:01:47.3]} 17. Rad1 {[%clk 0:01:17.9]} 17... Be7 {[%clk
0:01:47.2]} 18. Kg2 {[%clk 0:01:17.9]} 18... Re8 {[%clk 0:01:36.8]} 19. Rfe1
{[%clk 0:01:17.4]} 19... g6 {[%clk 0:01:36.8]} 20. Re4 {[%clk 0:01:10.7]} 20...
Bd6 {[%clk 0:01:36.6]} 21. Rh4 {[%clk 0:01:09.8]} 21... h5 {[%clk 0:01:36.3]}
22. a3 {[%clk 0:01:07.3]} 22... Ne7 {[%clk 0:01:36.3]} 23. Bb4 {[%clk
0:01:02.2]} 23... Nf5 {[%clk 0:01:35.3]} 24. Re4 {[%clk 0:01:01]} 24... c5
{[%clk 0:01:24.8]} 25. Rc4 {[%clk 0:00:55.4]} 25... b6 {[%clk 0:01:24.4]} 26.
Bc3 {[%clk 0:00:44.8]} 26... Bc7 {[%clk 0:01:17.1]} 27. a4 {[%clk 0:00:43.1]}
27... Nd6 {[%clk 0:01:15.1]} 28. Rf4 {[%clk 0:00:38.8]} 28... Nf5 {[%clk
0:01:15]} 29. Re4 {[%clk 0:00:39.2]} 29... a5 {[%clk 0:01:13.5]} 30. Be5 {[%clk
0:00:32.4]} 30... Bxe5 {[%clk 0:01:06.6]} 31. Rxe5 {[%clk 0:00:33.3]} 31... Kc7
{[%clk 0:01:02.6]} 32. c3 {[%clk 0:00:31.7]} 32... Re7 {[%clk 0:01:01.1]} 33. b4
{[%clk 0:00:29.3]} 33... axb4 {[%clk 0:00:57]} 34. cxb4 {[%clk 0:00:30.2]} 34...
cxb4 {[%clk 0:00:55.9]} 35. Rb5 {[%clk 0:00:30.2]} 35... Nh4+ {[%clk 0:00:43.3]}
36. Kg3 {[%clk 0:00:30.3]} 36... Nf5+ {[%clk 0:00:43.5]} 37. Kf4 {[%clk
0:00:17.6]} 37... f6 {[%clk 0:00:43.4]} 38. Rxb4 {[%clk 0:00:12.4]} 38... e5+
{[%clk 0:00:42.9]} 39. Ke4 {[%clk 0:00:12.3]} 39... Nd6+ {[%clk 0:00:37.7]} 40.
Kd5 {[%clk 0:00:10.9]} 40... Nb7 {[%clk 0:00:34.1]} 41. Rc1+ {[%clk 0:00:10.7]}
41... Nc5 {[%clk 0:00:30.6]} 42. a5 {[%clk 0:00:11]} 42... Rd7+ {[%clk
0:00:30.9]} 43. Kc4 {[%clk 0:00:11.4]} 43... Rd4+ {[%clk 0:00:28.8]} 44. Kb5
{[%clk 0:00:11.5]} 44... Rxb4+ {[%clk 0:00:26.5]} 45. Kxb4 {[%clk 0:00:12.4]}
45... Kb7 {[%clk 0:00:27]} 46. Rxc5 {[%clk 0:00:10.2]} 46... bxc5+ {[%clk
0:00:26]} 47. Kxc5 {[%clk 0:00:11.1]} 47... g5 {[%clk 0:00:19.7]} 48. Kd5 {[%clk
0:00:10.6]} 48... g4 {[%clk 0:00:19.6]} 49. fxg4 {[%clk 0:00:10.7]} 49... hxg4
{[%clk 0:00:20.3]} 50. Ke6 {[%clk 0:00:10.4]} 1-0

[Event "Late-Titled-Tuesday-Blitz-January-23-2024"]
[Site "Chess.com"]
[Date "2024.01.23"]
[Round "5"]
[White "Blackwhite017"]
[Black "DonJuan_34"]
[Result "0-1"]
[WhiteElo "2082"]
[BlackElo "2388"]
[TimeControl "180+1"]
[EndTime "14:55:14 PST"]
[Termination "DonJuan_34 won on time"]

1. e4 {[%clk 0:03:00]} 1... e6 {[%clk 0:02:59.8]} 2. d3 {[%clk 0:02:58.4]} 2...
d5 {[%clk 0:03:00.1]} 3. Nd2 {[%clk 0:02:58.7]} 3... Nf6 {[%clk 0:02:58.8]} 4.
Ngf3 {[%clk 0:02:57.4]} 4... Bc5 {[%clk 0:02:55.6]} 5. e5 {[%clk 0:02:47.1]}
5... Nfd7 {[%clk 0:02:54.3]} 6. d4 {[%clk 0:02:46.2]} 6... Be7 {[%clk 0:02:54]}
7. Bd3 {[%clk 0:02:42.9]} 7... c5 {[%clk 0:02:54.3]} 8. c3 {[%clk 0:02:38.6]}
8... Nc6 {[%clk 0:02:54.8]} 9. a3 {[%clk 0:02:37.6]} 9... a5 {[%clk 0:02:51.7]}
10. O-O {[%clk 0:02:27.8]} 10... cxd4 {[%clk 0:02:51.5]} 11. cxd4 {[%clk
0:02:26.1]} 11... a4 {[%clk 0:02:52]} 12. b4 {[%clk 0:02:08]} 12... axb3 {[%clk
0:02:49.8]} 13. Nxb3 {[%clk 0:02:07.9]} 13... Nb6 {[%clk 0:02:44.5]} 14. Be3
{[%clk 0:02:01.9]} 14... Nc4 {[%clk 0:02:39.7]} 15. Bxc4 {[%clk 0:01:47.6]}
15... dxc4 {[%clk 0:02:38.5]} 16. Nc5 {[%clk 0:01:48.5]} 16... Qd5 {[%clk
0:02:02.9]} 17. Qc2 {[%clk 0:01:41.6]} 17... Bxc5 {[%clk 0:01:52.8]} 18. dxc5
{[%clk 0:01:41.1]} 18... Nxe5 {[%clk 0:01:52.9]} 19. Nxe5 {[%clk 0:01:41]} 19...
Qxe5 {[%clk 0:01:53]} 20. Qxc4 {[%clk 0:01:41.3]} 20... O-O {[%clk 0:01:51.9]}
21. Bd4 {[%clk 0:01:36.7]} 21... Qf5 {[%clk 0:01:49.9]} 22. Rae1 {[%clk
0:01:30.8]} 22... Bd7 {[%clk 0:01:46.2]} 23. Re5 {[%clk 0:01:27.4]} 23... Qg4
{[%clk 0:01:41.3]} 24. h3 {[%clk 0:01:20.7]} 24... Qg6 {[%clk 0:01:36]} 25. Bb2
{[%clk 0:01:08.3]} 25... Bc6 {[%clk 0:01:34.2]} 26. g3 {[%clk 0:00:58.8]} 26...
Ra4 {[%clk 0:01:32.6]} 27. Qc1 {[%clk 0:00:58.5]} 27... Re4 {[%clk 0:01:25.3]}
28. Rg5 {[%clk 0:00:54.8]} 28... Qh6 {[%clk 0:01:07]} 29. Rxg7+ {[%clk
0:00:52.7]} 29... Qxg7 {[%clk 0:01:04.8]} 30. Bxg7 {[%clk 0:00:52.2]} 30... Kxg7
{[%clk 0:01:05.5]} 31. Qg5+ {[%clk 0:00:46.2]} 31... Kh8 {[%clk 0:01:05.1]} 32.
Qf6+ {[%clk 0:00:45.4]} 32... Kg8 {[%clk 0:01:05.3]} 33. Rd1 {[%clk 0:00:40]}
33... Ra8 {[%clk 0:01:04.1]} 34. h4 {[%clk 0:00:36]} 34... Rea4 {[%clk
0:00:57.1]} 35. h5 {[%clk 0:00:32.1]} 35... Rg4 {[%clk 0:00:47]} 36. h6 {[%clk
0:00:12.2]} 36... Re8 {[%clk 0:00:17.4]} 37. Rd8 {[%clk 0:00:12.3]} 37... Kf8
{[%clk 0:00:15.9]} 38. Rxe8+ {[%clk 0:00:06.8]} 38... Kxe8 {[%clk 0:00:15.2]}
39. Qh8+ {[%clk 0:00:07.2]} 39... Ke7 {[%clk 0:00:14.6]} 40. Qxh7 {[%clk
0:00:07.5]} 40... Rc4 {[%clk 0:00:14.6]} 41. Qb1 {[%clk 0:00:04.1]} 41... Be4
{[%clk 0:00:14]} 42. Qa1 {[%clk 0:00:03.1]} 42... Rxc5 {[%clk 0:00:11.2]} 43. h7
{[%clk 0:00:02.3]} 43... Bxh7 {[%clk 0:00:10.5]} 0-1

[Event "Late-Titled-Tuesday-Blitz-January-23-2024"]
[Site "Chess.com"]
[Date "2024.01.23"]
[Round "5"]
[White "Alex_Sahakyan2006"]
[Black "stoleriu"]
[Result "1-0"]
[WhiteElo "2726"]
[BlackElo "2564"]
[TimeControl "180+1"]
[EndTime "14:55:15 PST"]
[Termination "Alex_Sahakyan2006 won by resignation"]

1. e4 {[%clk 0:03:00.9]} 1... e6 {[%clk 0:02:58.1]} 2. d4 {[%clk 0:02:59]} 2...
d5 {[%clk 0:02:59]} 3. exd5 {[%clk 0:02:59.9]} 3... exd5 {[%clk 0:02:59.9]} 4.
Nc3 {[%clk 0:03:00.8]} 4... c6 {[%clk 0:02:56.1]} 5. Nf3 {[%clk 0:03:00.3]} 5...
Bd6 {[%clk 0:02:56.8]} 6. Bd3 {[%clk 0:03:00.4]} 6... Bg4 {[%clk 0:02:56.6]} 7.
O-O {[%clk 0:03:00.4]} 7... Ne7 {[%clk 0:02:57.4]} 8. Qe2 {[%clk 0:02:48.8]}
8... Nd7 {[%clk 0:02:53.3]} 9. Re1 {[%clk 0:02:41.7]} 9... Bh5 {[%clk
0:02:51.4]} 10. Bg5 {[%clk 0:02:36.2]} 10... f6 {[%clk 0:02:48.1]} 11. Bf4
{[%clk 0:02:29.7]} 11... Bxf4 {[%clk 0:02:45.3]} 12. Qe6 {[%clk 0:02:21.4]}
12... Bxf3 {[%clk 0:02:13.5]} 13. gxf3 {[%clk 0:02:06.6]} 13... Nf8 {[%clk
0:02:13.4]} 14. Qg4 {[%clk 0:02:03.3]} 14... Bh6 {[%clk 0:02:13]} 15. Re2 {[%clk
0:01:32.1]} 15... Qd7 {[%clk 0:02:12.8]} 16. Bf5 {[%clk 0:01:25.6]} 16... Qd6
{[%clk 0:01:44.7]} 17. Rae1 {[%clk 0:01:24.1]} 17... Kf7 {[%clk 0:01:45.3]} 18.
Rxe7+ {[%clk 0:01:17.6]} 18... Qxe7 {[%clk 0:01:46.2]} 19. Rxe7+ {[%clk
0:01:16.6]} 19... Kxe7 {[%clk 0:01:47.1]} 20. Bc8 {[%clk 0:01:16.8]} 20... Rb8
{[%clk 0:01:44]} 21. Na4 {[%clk 0:00:58.1]} 21... Kd8 {[%clk 0:01:44.2]} 22. Bf5
{[%clk 0:00:38.2]} 22... g6 {[%clk 0:01:44.2]} 23. Qg3 {[%clk 0:00:38.7]} 23...
Ra8 {[%clk 0:01:35.2]} 24. Qd6+ {[%clk 0:00:35.6]} 24... Ke8 {[%clk 0:01:35.6]}
25. Be6 {[%clk 0:00:28.2]} 25... Bf4 {[%clk 0:00:56.4]} 26. Qxf4 {[%clk
0:00:27]} 26... Nxe6 {[%clk 0:00:56.8]} 27. Qxf6 {[%clk 0:00:27]} 27... Kd7
{[%clk 0:00:57.4]} 28. Qf7+ {[%clk 0:00:14.1]} 28... Kd6 {[%clk 0:00:57.9]} 29.
Qxb7 {[%clk 0:00:12.5]} 29... Rab8 {[%clk 0:00:56.1]} 30. Qa6 {[%clk 0:00:09.4]}
30... Nxd4 {[%clk 0:00:45.8]} 31. Qxa7 {[%clk 0:00:08.8]} 31... Ne6 {[%clk
0:00:39.4]} 32. Nb6 {[%clk 0:00:07.2]} 32... Rhd8 {[%clk 0:00:36.3]} 33. Qa3+
{[%clk 0:00:02.6]} 33... c5 {[%clk 0:00:29.1]} 34. Qa6 {[%clk 0:00:02.5]} 34...
Nc7 {[%clk 0:00:18.1]} 35. Nc4+ {[%clk 0:00:02.8]} 35... Ke7 {[%clk 0:00:14.8]}
36. Qc6 {[%clk 0:00:03.2]} 36... Ne6 {[%clk 0:00:11.5]} 37. Ne3 {[%clk 0:00:03]}
37... d4 {[%clk 0:00:06.6]} 38. Nd5+ {[%clk 0:00:03.3]} 38... Kf7 {[%clk
0:00:07.2]} 39. Nb6 {[%clk 0:00:03.4]} 39... Re8 {[%clk 0:00:02.9]} 40. a4
{[%clk 0:00:03.7]} 40... Re7 {[%clk 0:00:03.3]} 41. Nd5 {[%clk 0:00:03.3]} 41...
Ra7 {[%clk 0:00:02.7]} 42. b3 {[%clk 0:00:03]} 42... Re8 {[%clk 0:00:01.5]} 43.
Qd6 {[%clk 0:00:03.1]} 43... Rb7 {[%clk 0:00:01.2]} 44. Nf4 {[%clk 0:00:03.3]}
44... Nxf4 {[%clk 0:00:01.4]} 45. Qxf4+ {[%clk 0:00:04.2]} 45... Kg7 {[%clk
0:00:02.1]} 46. Qd6 {[%clk 0:00:04.3]} 46... Rd8 {[%clk 0:00:02]} 47. Qxd8
{[%clk 0:00:04.3]} 47... c4 {[%clk 0:00:02.6]} 48. Qxd4+ {[%clk 0:00:03.6]} 1-0

[Event "Late-Titled-Tuesday-Blitz-January-23-2024"]
[Site "Chess.com"]
[Date "2024.01.23"]
[Round "5"]
[White "aa175"]
[Black "Mops_2004"]
[Result "1/2-1/2"]
[WhiteElo "2682"]
[BlackElo "2854"]
[TimeControl "180+1"]
[EndTime "14:55:16 PST"]
[Termination "Game drawn by repetition"]

1. e4 {[%clk 0:03:00.9]} 1... c6 {[%clk 0:02:58.5]} 2. d4 {[%clk 0:02:59.1]}
2... d5 {[%clk 0:02:58.9]} 3. exd5 {[%clk 0:03:00]} 3... cxd5 {[%clk 0:02:59.1]}
4. Bd3 {[%clk 0:03:00.5]} 4... Nf6 {[%clk 0:02:58.5]} 5. Nf3 {[%clk 0:02:59.4]}
5... Nc6 {[%clk 0:02:57.9]} 6. c3 {[%clk 0:02:59.6]} 6... Bg4 {[%clk 0:02:57.5]}
7. h3 {[%clk 0:03:00]} 7... Bh5 {[%clk 0:02:56.8]} 8. O-O {[%clk 0:03:00.6]}
8... e6 {[%clk 0:02:56.8]} 9. Bf4 {[%clk 0:03:00.1]} 9... Bd6 {[%clk 0:02:56.4]}
10. Bxd6 {[%clk 0:03:00.8]} 10... Qxd6 {[%clk 0:02:56.8]} 11. Re1 {[%clk
0:03:01.5]} 11... O-O {[%clk 0:02:54.4]} 12. Nbd2 {[%clk 0:03:02.2]} 12... Rab8
{[%clk 0:02:49.5]} 13. a4 {[%clk 0:02:57.1]} 13... a6 {[%clk 0:02:47.9]} 14. a5
{[%clk 0:02:57.7]} 14... Qc7 {[%clk 0:02:47.9]} 15. Qa4 {[%clk 0:02:58.2]} 15...
Bg6 {[%clk 0:02:45.5]} 16. Bxg6 {[%clk 0:02:58.6]} 16... hxg6 {[%clk 0:02:45.3]}
17. Ne5 {[%clk 0:02:59.5]} 17... Nxe5 {[%clk 0:02:44.8]} 18. dxe5 {[%clk
0:03:00.4]} 18... Nd7 {[%clk 0:02:43.9]} 19. Nf3 {[%clk 0:02:59.7]} 19... Rfc8
{[%clk 0:02:39.3]} 20. Qb4 {[%clk 0:02:47]} 20... Qc5 {[%clk 0:02:34.3]} 21. Qh4
{[%clk 0:02:40.3]} 21... Qc4 {[%clk 0:02:28.5]} 22. Qe7 {[%clk 0:02:39.3]} 22...
Qc7 {[%clk 0:02:17.6]} 23. Qh4 {[%clk 0:02:24.6]} 23... Qc4 {[%clk 0:02:16.7]}
24. Qe7 {[%clk 0:02:25.2]} 24... Nf8 {[%clk 0:02:16.7]} 25. Ng5 {[%clk
0:02:11.9]} 25... Qc7 {[%clk 0:02:14.3]} 26. Qb4 {[%clk 0:02:05.5]} 26... Qc4
{[%clk 0:02:10.9]} 27. Ra4 {[%clk 0:01:58.9]} 27... Qxb4 {[%clk 0:02:09.5]} 28.
Rxb4 {[%clk 0:01:50]} 28... Nd7 {[%clk 0:02:07.7]} 29. Rf4 {[%clk 0:01:40.3]}
29... Rf8 {[%clk 0:01:54.7]} 30. c4 {[%clk 0:01:38.3]} 30... Nc5 {[%clk
0:01:46.3]} 31. Rd1 {[%clk 0:01:28.9]} 31... Rbd8 {[%clk 0:01:36.1]} 32. b4
{[%clk 0:01:26.7]} 32... Nd7 {[%clk 0:01:19.2]} 33. Nf3 {[%clk 0:01:09.7]} 33...
Nb8 {[%clk 0:01:02.2]} 34. cxd5 {[%clk 0:01:07.3]} 34... Rxd5 {[%clk 0:00:56.9]}
35. Rxd5 {[%clk 0:01:04.8]} 35... exd5 {[%clk 0:00:57.8]} 36. b5 {[%clk
0:00:49.9]} 36... axb5 {[%clk 0:00:55.2]} 37. Rb4 {[%clk 0:00:50.6]} 37... Nc6
{[%clk 0:00:51.1]} 38. Rxb5 {[%clk 0:00:50.8]} 38... Ra8 {[%clk 0:00:49.2]} 39.
Rxb7 {[%clk 0:00:46.8]} 39... Nxa5 {[%clk 0:00:31.5]} 40. Rd7 {[%clk 0:00:42.7]}
40... Kf8 {[%clk 0:00:30.8]} 41. Ng5 {[%clk 0:00:41.7]} 41... Ke8 {[%clk
0:00:27.2]} 42. Rxf7 {[%clk 0:00:41.5]} 42... d4 {[%clk 0:00:27.5]} 43. Rxg7
{[%clk 0:00:40]} 43... d3 {[%clk 0:00:25.9]} 44. Ne4 {[%clk 0:00:31.4]} 44...
Ra6 {[%clk 0:00:17.5]} 45. Kf1 {[%clk 0:00:12.9]} 45... Nc4 {[%clk 0:00:16.9]}
46. f4 {[%clk 0:00:10]} 46... Ra1+ {[%clk 0:00:13.3]} 47. Kf2 {[%clk 0:00:10.6]}
47... d2 {[%clk 0:00:13.8]} 48. Nf6+ {[%clk 0:00:04.2]} 48... Kf8 {[%clk
0:00:08.5]} 49. Rd7 {[%clk 0:00:01.3]} 49... d1=Q {[%clk 0:00:09]} 50. Nh7+
{[%clk 0:00:01.6]} 50... Ke8 {[%clk 0:00:06.8]} 51. Nf6+ {[%clk 0:00:02.1]}
51... Kf8 {[%clk 0:00:07.3]} 52. Nh7+ {[%clk 0:00:01.5]} 52... Kg8 {[%clk
0:00:08]} 53. Nf6+ {[%clk 0:00:01.5]} 53... Kf8 {[%clk 0:00:07.8]} 1/2-1/2

[Event "Late-Titled-Tuesday-Blitz-January-23-2024"]
[Site "Chess.com"]
[Date "2024.01.23"]
[Round "5"]
[White "MusicCityMaster"]
[Black "youngdinousaur"]
[Result "1-0"]
[WhiteElo "2469"]
[BlackElo "2318"]
[TimeControl "180+1"]
[EndTime "14:55:16 PST"]
[Termination "MusicCityMaster won on time"]

1. d4 {[%clk 0:03:00.9]} 1... Nf6 {[%clk 0:02:59.9]} 2. c4 {[%clk 0:02:58.9]}
2... e6 {[%clk 0:03:00.4]} 3. a3 {[%clk 0:02:58.4]} 3... d5 {[%clk 0:03:00.5]}
4. e3 {[%clk 0:02:58.4]} 4... Be7 {[%clk 0:03:00.1]} 5. Nf3 {[%clk 0:02:58.9]}
5... O-O {[%clk 0:02:59.4]} 6. Nc3 {[%clk 0:02:59.5]} 6... c5 {[%clk 0:02:59.4]}
7. Bd3 {[%clk 0:02:57.8]} 7... Nc6 {[%clk 0:02:56.9]} 8. O-O {[%clk 0:02:57.4]}
8... dxc4 {[%clk 0:02:56.5]} 9. Bxc4 {[%clk 0:02:58.3]} 9... cxd4 {[%clk
0:02:56.9]} 10. exd4 {[%clk 0:02:59.2]} 10... b6 {[%clk 0:02:55]} 11. Bd3 {[%clk
0:02:58.8]} 11... Bb7 {[%clk 0:02:54.8]} 12. Bc2 {[%clk 0:02:59.2]} 12... Rc8
{[%clk 0:02:51.4]} 13. Qd3 {[%clk 0:02:59.3]} 13... g6 {[%clk 0:02:31.1]} 14.
Bh6 {[%clk 0:02:57]} 14... Re8 {[%clk 0:02:30.8]} 15. Rfe1 {[%clk 0:02:50.5]}
15... Nd5 {[%clk 0:02:30]} 16. Rad1 {[%clk 0:02:46.8]} 16... Bf6 {[%clk
0:02:29.1]} 17. Ne4 {[%clk 0:02:43.2]} 17... Bg7 {[%clk 0:02:27.8]} 18. Bxg7
{[%clk 0:02:37.5]} 18... Kxg7 {[%clk 0:02:28.7]} 19. Neg5 {[%clk 0:02:15.3]}
19... Qf6 {[%clk 0:02:22.5]} 20. Bb3 {[%clk 0:01:51.7]} 20... Nf4 {[%clk
0:02:17.4]} 21. Qe3 {[%clk 0:01:47.6]} 21... Na5 {[%clk 0:02:04.3]} 22. Ba2
{[%clk 0:01:47.4]} 22... Nd5 {[%clk 0:01:58.8]} 23. Qd2 {[%clk 0:01:34.9]} 23...
Nc4 {[%clk 0:01:52.1]} 24. Bxc4 {[%clk 0:01:27.4]} 24... Rxc4 {[%clk 0:01:53]}
25. Ne5 {[%clk 0:01:25.7]} 25... Rc7 {[%clk 0:01:46.3]} 26. Rc1 {[%clk
0:01:20.9]} 26... Rec8 {[%clk 0:01:41.6]} 27. Rxc7 {[%clk 0:01:17]} 27... Rxc7
{[%clk 0:01:42.5]} 28. Rc1 {[%clk 0:01:01.7]} 28... Qf5 {[%clk 0:01:13.6]} 29.
g4 {[%clk 0:00:33.3]} 29... Rxc1+ {[%clk 0:00:42.1]} 30. Qxc1 {[%clk 0:00:34.2]}
30... Qf4 {[%clk 0:00:42]} 31. Qxf4 {[%clk 0:00:31.9]} 31... Nxf4 {[%clk
0:00:42.9]} 32. Ngxf7 {[%clk 0:00:29.6]} 32... Ne2+ {[%clk 0:00:36.2]} 33. Kf1
{[%clk 0:00:29.7]} 33... Nxd4 {[%clk 0:00:36.7]} 34. Nd6 {[%clk 0:00:28.5]}
34... Ba6+ {[%clk 0:00:31]} 35. Kg2 {[%clk 0:00:28.7]} 35... Kf6 {[%clk
0:00:25.7]} 36. Nf3 {[%clk 0:00:23.6]} 36... e5 {[%clk 0:00:19.1]} 37. Ne4+
{[%clk 0:00:21]} 37... Ke7 {[%clk 0:00:16.9]} 38. Nxe5 {[%clk 0:00:20.1]} 38...
Bb7 {[%clk 0:00:16.1]} 39. f3 {[%clk 0:00:20.6]} 39... Ke6 {[%clk 0:00:14.3]}
40. Nd3 {[%clk 0:00:19.4]} 40... h5 {[%clk 0:00:09.5]} 41. gxh5 {[%clk
0:00:18.4]} 41... gxh5 {[%clk 0:00:10.4]} 42. Kf2 {[%clk 0:00:18.6]} 42... Bxe4
{[%clk 0:00:08.9]} 43. fxe4 {[%clk 0:00:18.5]} 43... Nb3 {[%clk 0:00:05.4]} 44.
Ke3 {[%clk 0:00:18.6]} 44... a5 {[%clk 0:00:05.1]} 45. Nf4+ {[%clk 0:00:18.5]}
45... Ke5 {[%clk 0:00:03.4]} 46. Nxh5 {[%clk 0:00:19.4]} 46... Nc5 {[%clk
0:00:03.8]} 47. Ng3 {[%clk 0:00:19]} 47... b5 {[%clk 0:00:04]} 48. h4 {[%clk
0:00:16.9]} 48... b4 {[%clk 0:00:04.4]} 49. axb4 {[%clk 0:00:16.8]} 49... axb4
{[%clk 0:00:04.8]} 50. h5 {[%clk 0:00:17.4]} 50... Nd7 {[%clk 0:00:02.3]} 51.
Nf5 {[%clk 0:00:16.8]} 51... Nf6 {[%clk 0:00:02.4]} 52. h6 {[%clk 0:00:16.4]}
52... b3 {[%clk 0:00:01.9]} 53. Nd4 {[%clk 0:00:14.9]} 1-0

[Event "Late-Titled-Tuesday-Blitz-January-23-2024"]
[Site "Chess.com"]
[Date "2024.01.23"]
[Round "5"]
[White "YurasovMat-2012"]
[Black "DeArron_Fox"]
[Result "1-0"]
[WhiteElo "2595"]
[BlackElo "2438"]
[TimeControl "180+1"]
[EndTime "14:55:19 PST"]
[Termination "YurasovMat-2012 won by resignation"]

1. e4 {[%clk 0:02:39.4]} 1... c5 {[%clk 0:02:59.8]} 2. Nf3 {[%clk 0:02:35.4]}
2... e6 {[%clk 0:02:59.9]} 3. g3 {[%clk 0:02:31.1]} 3... d5 {[%clk 0:02:57.2]}
4. exd5 {[%clk 0:02:26.3]} 4... exd5 {[%clk 0:02:58.1]} 5. Bg2 {[%clk
0:02:25.3]} 5... Nf6 {[%clk 0:02:58.3]} 6. O-O {[%clk 0:02:24.9]} 6... Be7
{[%clk 0:02:58.9]} 7. d4 {[%clk 0:02:24.2]} 7... O-O {[%clk 0:02:59.8]} 8. dxc5
{[%clk 0:02:22.5]} 8... Bxc5 {[%clk 0:02:58.1]} 9. Bg5 {[%clk 0:02:22.1]} 9...
Nc6 {[%clk 0:02:53]} 10. Nc3 {[%clk 0:02:21.1]} 10... d4 {[%clk 0:02:43.5]} 11.
Ne4 {[%clk 0:02:16.4]} 11... Be7 {[%clk 0:02:43.2]} 12. Nxf6+ {[%clk 0:02:14.5]}
12... Bxf6 {[%clk 0:02:44.1]} 13. Bxf6 {[%clk 0:02:13.5]} 13... Qxf6 {[%clk
0:02:45]} 14. Re1 {[%clk 0:02:09.9]} 14... Bg4 {[%clk 0:02:41.7]} 15. h3 {[%clk
0:02:08.7]} 15... Bh5 {[%clk 0:02:40.4]} 16. g4 {[%clk 0:02:06.9]} 16... Bg6
{[%clk 0:02:40.1]} 17. Nd2 {[%clk 0:02:06.9]} 17... Rfe8 {[%clk 0:02:32.4]} 18.
Ne4 {[%clk 0:02:02.4]} 18... Qf4 {[%clk 0:02:17.2]} 19. Nc5 {[%clk 0:01:59.3]}
19... Rxe1+ {[%clk 0:01:28.9]} 20. Qxe1 {[%clk 0:02:00.2]} 20... Ne5 {[%clk
0:01:05.1]} 21. Qc1 {[%clk 0:01:45.2]} 21... Nf3+ {[%clk 0:00:26.5]} 22. Kf1
{[%clk 0:01:39.2]} 22... Nd2+ {[%clk 0:00:26]} 23. Kg1 {[%clk 0:01:37.3]} 23...
Rc8 {[%clk 0:00:19.1]} 24. Qe1 {[%clk 0:01:11.3]} 24... Nf3+ {[%clk 0:00:10.2]}
25. Bxf3 {[%clk 0:01:10.6]} 25... Qxf3 {[%clk 0:00:11.1]} 26. Qe7 {[%clk
0:01:10.6]} 26... h5 {[%clk 0:00:05.6]} 27. Qg5 {[%clk 0:00:46.6]} 27... hxg4
{[%clk 0:00:04]} 28. hxg4 {[%clk 0:00:47.5]} 28... Bxc2 {[%clk 0:00:03.2]} 29.
Re1 {[%clk 0:00:42.9]} 29... d3 {[%clk 0:00:02.8]} 30. Ne4 {[%clk 0:00:38.9]}
30... Re8 {[%clk 0:00:02]} 31. Nf6+ {[%clk 0:00:37.6]} 31... Qxf6 {[%clk
0:00:02.7]} 32. Rxe8+ {[%clk 0:00:36.8]} 32... Kh7 {[%clk 0:00:03.3]} 33. Qxf6
{[%clk 0:00:36.8]} 33... gxf6 {[%clk 0:00:03.4]} 34. Rd8 {[%clk 0:00:36.9]}
34... Kg6 {[%clk 0:00:03.5]} 35. f4 {[%clk 0:00:36.8]} 35... f5 {[%clk
0:00:03.4]} 36. Rd6+ {[%clk 0:00:35.3]} 36... Kg7 {[%clk 0:00:03.7]} 37. gxf5
{[%clk 0:00:33.4]} 37... Kf8 {[%clk 0:00:03.7]} 38. f6 {[%clk 0:00:32.4]} 38...
Kg8 {[%clk 0:00:02.4]} 39. Kf2 {[%clk 0:00:32]} 39... Kh7 {[%clk 0:00:03]} 40.
Ke3 {[%clk 0:00:30]} 40... Kg6 {[%clk 0:00:01.9]} 41. Kd2 {[%clk 0:00:28.7]}
41... Kf5 {[%clk 0:00:01.7]} 42. Rd7 {[%clk 0:00:28.4]} 42... Kxf6 {[%clk
0:00:02.1]} 43. Rxb7 {[%clk 0:00:28.3]} 43... a5 {[%clk 0:00:03]} 44. b3 {[%clk
0:00:26]} 44... Kf5 {[%clk 0:00:02.7]} 45. Rxf7+ {[%clk 0:00:24.5]} 45... Ke6
{[%clk 0:00:03.3]} 46. Ra7 {[%clk 0:00:23.8]} 46... a4 {[%clk 0:00:03.1]} 47.
Rxa4 {[%clk 0:00:23.9]} 47... Kf5 {[%clk 0:00:04]} 48. Rd4 {[%clk 0:00:23.5]}
48... Kg4 {[%clk 0:00:04.3]} 49. b4 {[%clk 0:00:21.1]} 49... Kf5 {[%clk
0:00:04.2]} 50. b5 {[%clk 0:00:20.6]} 50... Ke6 {[%clk 0:00:04.9]} 51. b6 {[%clk
0:00:20.4]} 1-0